bitfinex/quotes_BTCUSD_20250108
["timestamp","ask_amount","ask_price","bid_price","bid_amount"]
[1736314667828,0.206765,96728.0,96726.0,0.02681121]
[1736314668027,0.211765,96728.0,96726.0,0.02681121]
[1736314668728,0.216765,96728.0,96726.0,0.00529963]
[1736314669144,0.217765,96728.0,96726.0,0.00529963]
[1736314671033,0.02073,96727.0,96726.0,0.00529963]
[1736314671242,0.217765,96728.0,96727.0,0.023]
[1736314671902,0.206765,96728.0,96727.0,0.00530471]
[1736314672102,0.206765,96728.0,96727.0,0.0521168]
[1736314672255,0.206765,96728.0,96727.0,0.04681209]
[1736314672467,0.206765,96728.0,96727.0,0.05211668]
[1736314673011,0.207765,96728.0,96727.0,0.05211668]
[1736314673206,0.207765,96728.0,96727.0,0.02830459]
[1736314673436,0.212765,96728.0,96727.0,0.02830459]
[1736314677166,1.39021491,96728.0,96727.0,0.00530459]
[1736314677374,0.69501391,96728.0,96727.0,0.00530459]
[1736314677669,0.206795,96714.0,96711.0,0.08401621]
[1736314677874,0.206795,96714.0,96712.0,0.01606162]
[1736314678099,0.206795,96714.0,96713.0,0.023]
[1736314678281,0.206781,96721.0,96715.0,0.023]
[1736314678487,0.206781,96721.0,96717.0,0.023]
[1736314679077,0.206781,96721.0,96719.0,0.023]
[1736314679481,0.227499,96727.0,96717.0,0.023]
[1736314679690,0.206769,96726.0,96720.0,0.0056802]
[1736314680037,0.001,96721.0,96719.0,0.023]
[1736314680151,0.007,96721.0,96719.0,0.023]
[1736314680356,0.206782,96720.0,96719.0,0.05845778]
[1736314682086,0.206782,96720.0,96719.0,0.023]
[1736314682293,0.206782,96720.0,96712.0,0.01606162]
[1736314682294,0.206795,96714.0,96712.0,0.09106162]
[1736314682497,0.206795,96714.0,96713.0,0.023]
[1736314682699,0.206795,96714.0,96713.0,0.10701621]
[1736314683486,0.206795,96714.0,96713.0,0.023]
[1736314684209,0.206795,96714.0,96713.0,0.03735]
[1736314684414,0.206795,96714.0,96713.0,0.12136621]
[1736314684613,0.206795,96714.0,96713.0,0.03735]
[1736314684969,0.207795,96714.0,96713.0,0.12136621]
[1736314685178,0.207795,96714.0,96713.0,0.03735]
[1736314685332,0.210795,96714.0,96713.0,0.03735]
[1736314685529,0.206795,96714.0,96713.0,0.03735]
[1736314685732,0.207795,96714.0,96713.0,0.12136621]
[1736314686093,0.005,96714.0,96713.0,0.12136621]
[1736314687973,0.001,96714.0,96713.0,0.12136621]
[1736314688173,0.206781,96721.0,96713.0,0.12136621]
[1736314688380,0.206781,96721.0,96715.0,0.023]
[1736314689401,0.207781,96721.0,96715.0,0.023]
[1736314689599,0.206782,96720.0,96715.0,0.023]
[1736314690629,0.413565,96720.0,96715.0,0.023]
[1736314690991,0.413572,96718.0,96714.0,0.023]
[1736314691394,0.413572,96718.0,96713.0,0.023]
[1736314691595,0.413572,96718.0,96713.0,0.10701621]
[1736314692202,0.413572,96718.0,96713.0,0.023]
[1736314692726,0.418572,96718.0,96713.0,0.023]
[1736314692928,0.414572,96718.0,96713.0,0.023]
[1736314693212,0.414572,96718.0,96713.0,0.10701621]
[1736314693430,0.417572,96718.0,96713.0,0.05787849]
[1736314693577,0.413572,96718.0,96713.0,0.05787849]
[1736314694472,0.413572,96718.0,96714.0,0.00568418]
[1736314694685,0.414572,96718.0,96714.0,0.00568418]
[1736314695336,0.413572,96718.0,96714.0,0.00568418]
[1736314695532,0.420572,96718.0,96714.0,0.00568418]
[1736314695762,0.207786,96718.0,96714.0,0.00568418]
[1736314696185,0.210786,96718.0,96714.0,0.00568418]
[1736314696386,0.207786,96718.0,96714.0,0.00568418]
[1736314696563,0.414573,96718.0,96714.0,0.00568418]
[1736314697224,0.418573,96718.0,96714.0,0.00568418]
[1736314697622,0.211786,96718.0,96714.0,0.00568418]
[1736314697848,0.210786,96718.0,96714.0,0.00568418]
[1736314698121,0.211786,96718.0,96714.0,0.00568418]
[1736314698534,0.206786,96718.0,96714.0,0.00568418]
[1736314698747,0.210786,96718.0,96714.0,0.00568418]
[1736314699003,0.211786,96718.0,96714.0,0.00568418]
[1736314699214,0.005,96718.0,96717.0,0.0763]
[1736314699434,0.005,96718.0,96717.0,0.15278866]
[1736314700245,0.001,96718.0,96717.0,0.15278866]
[1736314700473,0.005,96718.0,96717.0,0.15278866]
[1736314701082,0.004,96718.0,96717.0,0.15278866]
[1736314701292,0.005,96718.0,96717.0,0.21139279]
[1736314701489,0.005,96718.0,96717.0,0.395409]
[1736314702333,0.005,96718.0,96717.0,0.49444341]
[1736314703194,0.005,96718.0,96717.0,0.586713]
[1736314703602,0.005,96718.0,96717.0,0.49444341]
[1736314708366,0.005,96718.0,96717.0,0.586713]
[1736314709535,0.005,96718.0,96717.0,0.49444341]
[1736314711630,0.005,96718.0,96717.0,0.295409]
[1736314711836,0.005,96718.0,96717.0,0.00568866]
[1736314712037,0.206788,96717.0,96715.0,0.09226959]
[1736314712487,0.005,96718.0,96712.0,0.09226959]
[1736314712488,0.206793,96715.0,96712.0,0.09226959]
[1736314712843,0.206793,96715.0,96701.0,0.08401621]
[1736314713058,0.206819,96703.0,96702.0,0.14745183]
[1736314713263,0.206819,96703.0,96702.0,0.10701621]
[1736314714422,0.20686979,96703.0,96702.0,0.10701621]
[1736314714644,0.20686979,96703.0,96702.0,0.10801621]
[1736314715482,0.20786979,96703.0,96702.0,0.10801621]
[1736314715668,0.00105079,96703.0,96702.0,0.10801621]
[1736314715884,0.00105079,96703.0,96702.0,0.21281487]
[1736314716436,0.00105079,96703.0,96702.0,0.31281487]
[1736314724477,0.00105079,96703.0,96702.0,0.32021157]
[1736314729514,0.00085079,96703.0,96702.0,0.36661157]
[1736314733925,0.00085079,96703.0,96702.0,0.46564598]
[1736314744190,0.00072636,96703.0,96702.0,0.46564598]
[1736314746913,0.00072636,96703.0,96702.0,0.67246598]
[1736314747670,0.00072636,96703.0,96702.0,0.46564598]
[1736314748137,0.00072636,96703.0,96702.0,0.67246598]
[1736314748357,0.00072636,96703.0,96702.0,0.8108684]
[1736314748705,0.00072636,96703.0,96702.0,0.67246598]
[1736314748911,0.00072636,96703.0,96702.0,0.81088745]
[1736314749569,0.00072636,96703.0,96702.0,0.67246598]
[1736314751050,0.00072636,96703.0,96702.0,0.85702794]
[1736314751428,0.00072636,96703.0,96702.0,0.67246598]
[1736314752601,0.00072636,96703.0,96702.0,0.85702794]
[1736314753870,0.00072636,96703.0,96702.0,0.67246598]
[1736314767826,0.00072636,96703.0,96702.0,0.67146598]
[1736314768223,0.0009916,96722.0,96709.0,0.206804]
[1736314768416,0.00104242,96722.0,96710.0,0.17430027]
[1736314768599,0.00104242,96722.0,96718.0,0.023]
[1736314769000,0.20668881,96724.0,96718.0,0.023]
[1736314769207,0.20668881,96724.0,96720.0,0.023]
[1736314769401,0.20668881,96724.0,96720.0,0.03444049]
[1736314769799,0.006,96722.0,96721.0,0.03038874]
[1736314770233,0.007,96722.0,96721.0,0.03038874]
[1736314770578,0.006,96722.0,96721.0,0.00738874]
[1736314771126,0.206795,96714.0,96713.0,0.023]
[1736314771349,0.206795,96714.0,96713.0,0.06970394]
[1736314771504,0.206795,96714.0,96713.0,0.11440503]
[1736314772371,0.212795,96714.0,96713.0,0.11440503]
[1736314772560,0.006,96714.0,96713.0,0.11440503]
[1736314773308,0.006,96714.0,96713.0,0.29350503]
[1736314774164,0.007,96714.0,96713.0,0.29350503]
[1736314774380,0.007,96714.0,96713.0,0.32798381]
[1736314775183,0.007,96714.0,96713.0,0.42038546]
[1736314775791,0.007,96714.0,96713.0,0.32798381]
[1736314776767,0.007,96714.0,96713.0,0.4203608]
[1736314777858,0.007,96714.0,96713.0,0.46658628]
[1736314778276,0.007,96714.0,96713.0,0.32798381]
[1736314783317,0.007,96714.0,96713.0,0.42035964]
[1736314784621,0.007,96714.0,96713.0,0.32035964]
[1736314784943,0.007,96714.0,96713.0,0.34125964]
[1736314785181,0.007,96714.0,96713.0,0.24888381]
[1736314786724,0.007,96714.0,96713.0,0.34125964]
[1736314788955,0.007,96714.0,96713.0,0.24888381]
[1736314790977,0.007,96714.0,96713.0,0.38748628]
[1736314792667,0.007,96714.0,96713.0,0.28748628]
[1736314792870,0.007,96714.0,96713.0,0.16899129]
[1736314794034,0.007,96714.0,96713.0,0.03038882]
[1736314804359,0.007,96714.0,96713.0,0.10758882]
[1736314804707,0.001,96714.0,96713.0,0.10758882]
[1736314806143,0.001,96714.0,96713.0,0.29160503]
[1736314806348,0.001,96714.0,96713.0,0.3759403]
[1736314807016,0.001,96714.0,96713.0,0.47497471]
[1736314807223,0.001,96714.0,96713.0,0.52177471]
[1736314807422,0.001,96714.0,96713.0,0.67177471]
[1736314807870,0.001,96714.0,96713.0,0.85657801]
[1736314808100,8.53e-05,96740.0,96729.0,0.1276]
[1736314808277,8.53e-05,96740.0,96730.0,0.023]
[1736314808512,8.53e-05,96740.0,96738.0,0.023]
[1736314809074,8.53e-05,96740.0,96739.0,0.00738908]
[1736314809272,8.53e-05,96740.0,96739.0,0.03038908]
[1736314809686,8.53e-05,96740.0,96739.0,0.10878908]
[1736314810092,0.0050853,96740.0,96739.0,0.10878908]
[1736314810693,0.0100853,96740.0,96739.0,0.10978908]
[1736314811073,0.0110853,96740.0,96739.0,0.10978908]
[1736314811747,0.0110853,96740.0,96739.0,0.20978908]
[1736314812776,0.0110853,96740.0,96739.0,0.48859553]
[1736314813394,0.0110853,96740.0,96739.0,0.63859553]
[1736314813529,0.0100853,96740.0,96739.0,0.63859553]
[1736314813902,0.0100853,96740.0,96739.0,0.64884873]
[1736314814041,8.53e-05,96740.0,96739.0,0.64784873]
[1736314814245,8.53e-05,96740.0,96739.0,0.64984873]
[1736314814587,8.53e-05,96740.0,96739.0,0.64784873]
[1736314814785,8.53e-05,96740.0,96739.0,0.64884873]
[1736314814989,8.53e-05,96740.0,96739.0,0.65084873]
[1736314815647,8.53e-05,96740.0,96739.0,0.83502121]
[1736314816278,8.53e-05,96740.0,96739.0,0.64784873]
[1736314816488,8.53e-05,96740.0,96739.0,0.64984873]
[1736314816696,8.53e-05,96740.0,96739.0,0.65284873]
[1736314816899,8.53e-05,96740.0,96739.0,0.79085924]
[1736314817104,8.53e-05,96740.0,96739.0,0.78060604]
[1736314817315,8.53e-05,96740.0,96739.0,0.73045021]
[1736314817738,8.53e-05,96740.0,96739.0,0.58045021]
[1736314817946,8.53e-05,96740.0,96739.0,0.32040529]
[1736314818788,8.53e-05,96740.0,96739.0,0.34340529]
[1736314819403,8.53e-05,96740.0,96739.0,0.33840529]
[1736314819581,8.53e-05,96740.0,96739.0,0.39592092]
[1736314822181,8.53e-05,96740.0,96739.0,0.39492092]
[1736314823026,8.53e-05,96740.0,96739.0,0.39292092]
[1736314823239,0.0030853,96740.0,96739.0,0.39292092]
[1736314823390,8.53e-05,96740.0,96739.0,0.39292092]
[1736314823802,0.0030853,96740.0,96739.0,0.39292092]
[1736314824634,8.53e-05,96740.0,96739.0,0.39292092]
[1736314825384,0.0020853,96740.0,96739.0,0.39292092]
[1736314826751,8.53e-05,96740.0,96739.0,0.39292092]
[1736314826989,0.0010853,96740.0,96739.0,0.39292092]
[1736314828318,8.53e-05,96740.0,96739.0,0.39292092]
[1736314828540,8.53e-05,96740.0,96739.0,0.49195533]
[1736314828751,0.0010853,96740.0,96739.0,0.49195533]
[1736314829399,0.0010853,96740.0,96739.0,0.64195533]
[1736314830351,8.53e-05,96740.0,96739.0,0.64195533]
[1736314830586,8.53e-05,96740.0,96739.0,0.65252034]
[1736314831205,8.53e-05,96740.0,96739.0,0.64195533]
[1736314831578,8.53e-05,96740.0,96739.0,0.64395533]
[1736314831778,8.53e-05,96740.0,96739.0,0.64295533]
[1736314832655,8.53e-05,96740.0,96739.0,0.64195533]
[1736314832854,8.53e-05,96740.0,96739.0,0.64395533]
[1736314833081,8.53e-05,96740.0,96739.0,0.6486727]
[1736314833290,8.53e-05,96740.0,96739.0,0.6516727]
[1736314833641,8.53e-05,96740.0,96739.0,0.6546727]
[1736314834467,8.53e-05,96740.0,96739.0,0.7546727]
[1736314836894,8.53e-05,96740.0,96739.0,0.84658141]
[1736314837130,8.53e-05,96740.0,96739.0,0.86769171]
[1736314837348,8.53e-05,96740.0,96739.0,0.91991708]
[1736314838006,8.53e-05,96740.0,96739.0,0.87580678]
[1736314838254,8.53e-05,96740.0,96739.0,0.78389807]
[1736314838665,8.53e-05,96740.0,96739.0,0.80689807]
[1736314838983,8.53e-05,96740.0,96739.0,0.80489807]
[1736314839383,8.53e-05,96740.0,96739.0,0.79989807]
[1736314839723,8.53e-05,96740.0,96739.0,0.90093248]
[1736314839917,8.53e-05,96740.0,96739.0,0.89993248]
[1736314840085,8.53e-05,96740.0,96739.0,0.89893248]
[1736314840285,8.53e-05,96740.0,96739.0,0.90093248]
[1736314842104,8.53e-05,96740.0,96739.0,0.80189807]
[1736314845385,8.53e-05,96740.0,96739.0,0.80089807]
[1736314845814,8.53e-05,96740.0,96739.0,0.79889807]
[1736314846032,8.53e-05,96740.0,96739.0,0.80189807]
[1736314846236,0.2014884,96759.0,96741.0,0.206736]
[1736314846439,0.2014884,96759.0,96743.0,0.229733]
[1736314846640,0.2014884,96759.0,96758.0,0.023]
[1736314847089,0.2014884,96759.0,96758.0,0.03505202]
[1736314847875,0.00515249,96759.0,96758.0,0.03505202]
[1736314848388,0.00615249,96759.0,96758.0,0.03505202]
[1736314848591,0.00615249,96759.0,96758.0,0.04695884]
[1736314848827,0.00515249,96759.0,96758.0,0.04695884]
[1736314848983,0.00015249,96759.0,96758.0,0.04695884]
[1736314849333,0.00615249,96759.0,96758.0,0.04795884]
[1736314850297,0.00615249,96759.0,96758.0,0.03605202]
[1736314852355,0.00615249,96759.0,96758.0,0.13605202]
[1736314856436,0.02688249,96759.0,96758.0,0.13605202]
[1736314856633,0.02688249,96759.0,96758.0,0.03605202]
[1736314857932,0.02688249,96759.0,96758.0,0.01305202]
[1736314857933,0.8687639,96759.0,96758.0,0.01305202]
[1736314858170,1.24135861,96759.0,96758.0,0.001]
[1736314858793,1.24035861,96759.0,96758.0,0.001]
[1736314859000,1.23535861,96759.0,96735.0,0.023]
[1736314859219,0.206743,96739.0,96735.0,0.08401621]
[1736314859633,0.206743,96739.0,96737.0,0.023]
[1736314859815,0.413444,96749.0,96739.0,0.023]
[1736314860058,0.206731,96744.0,96739.0,0.023]
[1736314860260,0.206731,96744.0,96739.0,0.04975214]
[1736314860431,0.206731,96744.0,96741.0,0.023]
[1736314860906,0.206731,96744.0,96739.0,0.023]
[1736314861126,0.413462,96744.0,96743.0,0.023]
[1736314861925,0.414462,96744.0,96739.0,0.023]
[1736314862256,0.414462,96744.0,96741.0,0.023]
[1736314862490,0.413462,96744.0,96741.0,0.023]
[1736314862683,0.414462,96744.0,96739.0,0.023]
[1736314862905,0.418462,96744.0,96743.0,0.023]
[1736314863334,0.414462,96744.0,96739.0,0.023]
[1736314863741,0.418462,96744.0,96741.0,0.023]
[1736314864123,0.418462,96744.0,96739.0,0.023]
[1736314864303,0.418462,96744.0,96743.0,0.023]
[1736314864507,0.417462,96744.0,96743.0,0.023]
[1736314864706,0.418462,96744.0,96739.0,0.023]
[1736314865076,0.414462,96744.0,96741.0,0.023]
[1736314865227,0.418462,96744.0,96741.0,0.023]
[1736314865432,0.418462,96744.0,96739.0,0.023]
[1736314865598,0.414462,96744.0,96743.0,0.023]
[1736314865819,0.419462,96744.0,96743.0,0.023]
[1736314866036,0.418462,96744.0,96739.0,0.023]
[1736314866251,0.418462,96744.0,96743.0,0.01081168]
[1736314866630,0.424462,96744.0,96739.0,0.023]
[1736314866839,0.414462,96744.0,96739.0,0.023]
[1736314867287,0.414462,96744.0,96741.0,0.023]
[1736314867706,0.414462,96744.0,96739.0,0.023]
[1736314867707,0.207731,96744.0,96739.0,0.023]
[1736314867909,0.206731,96744.0,96742.0,0.01081168]
[1736314868111,0.206731,96744.0,96741.0,0.023]
[1736314868362,0.212731,96744.0,96743.0,0.01083466]
[1736314868565,0.212731,96744.0,96741.0,0.023]
[1736314868712,0.216731,96744.0,96741.0,0.023]
[1736314868927,0.217731,96744.0,96743.0,0.023]
[1736314869536,0.216731,96744.0,96743.0,0.03383466]
[1736314869939,0.212731,96744.0,96743.0,0.03383466]
[1736314870163,0.207731,96744.0,96743.0,0.03383466]
[1736314871379,0.206731,96744.0,96743.0,0.03383466]
[1736314871606,0.211731,96744.0,96743.0,0.03383466]
[1736314871808,0.212731,96744.0,96743.0,0.03383466]
[1736314872127,0.216731,96744.0,96743.0,0.03383466]
[1736314872265,0.215731,96744.0,96743.0,0.03383466]
[1736314872497,0.216731,96744.0,96743.0,0.03383466]
[1736314872701,0.01,96744.0,96743.0,0.28381975]
[1736314872910,0.01,96744.0,96743.0,0.26203466]
[1736314873630,0.206709,96754.0,96750.0,0.023]
[1736314874855,0.413419,96754.0,96750.0,0.023]
[1736314875448,0.419419,96754.0,96750.0,0.023]
[1736314875645,0.419419,96754.0,96752.0,0.023]
[1736314875914,0.006,96754.0,96753.0,0.10701621]
[1736314876135,0.005,96754.0,96753.0,0.28391621]
[1736314876342,0.2067722,96765.0,96758.0,0.123]
[1736314876546,0.2067722,96765.0,96758.0,0.15600719]
[1736314876877,0.2067722,96765.0,96758.0,0.16685176]
[1736314878125,0.00415249,96759.0,96758.0,0.16685176]
[1736314878769,0.00315249,96759.0,96758.0,0.16685176]
[1736314878963,0.00115249,96759.0,96758.0,0.16685176]
[1736314879317,0.00415249,96759.0,96758.0,0.16685176]
[1736314880250,0.00415249,96759.0,96758.0,0.21595176]
[1736314880450,0.00015249,96759.0,96758.0,0.34816078]
[1736314880769,0.00115249,96759.0,96758.0,0.44719519]
[1736314880972,0.00415249,96759.0,96758.0,0.44719519]
[1736314881147,0.00415249,96759.0,96758.0,0.51381491]
[1736314882305,0.00415249,96759.0,96758.0,0.34816078]
[1736314883115,0.00415249,96759.0,96758.0,0.34409116]
[1736314884716,0.00415249,96759.0,96758.0,0.26007495]
[1736314884943,0.00415249,96759.0,96758.0,0.34409116]
[1736314892104,0.00415249,96759.0,96758.0,0.02977495]
[1736314892446,0.00415249,96759.0,96758.0,0.11379116]
[1736314892971,0.00402809,96759.0,96758.0,0.11379116]
[1736314896010,0.02475809,96759.0,96758.0,0.11379116]
[1736314896217,0.00402809,96759.0,96758.0,0.11379116]
[1736314903142,0.00402809,96759.0,96758.0,0.02977495]
[1736314903334,0.00402809,96759.0,96758.0,0.11379116]
[1736314917354,0.00302809,96759.0,96758.0,0.11379116]
[1736314917674,2.809e-05,96759.0,96758.0,0.11379116]
[1736314917884,0.00102809,96759.0,96758.0,0.11379116]
[1736314918054,0.00402809,96759.0,96758.0,0.11379116]
[1736314918267,0.00302809,96759.0,96758.0,0.11379116]
[1736314918462,0.00302809,96759.0,96758.0,0.14321028]
[1736314918625,0.00602809,96759.0,96758.0,0.22251028]
[1736314918835,2.809e-05,96759.0,96758.0,0.22251028]
[1736314919276,0.00302809,96759.0,96758.0,0.22251028]
[1736314919483,2.809e-05,96759.0,96758.0,0.22251028]
[1736314919672,0.00102809,96759.0,96758.0,0.22251028]
[1736314920088,2.809e-05,96759.0,96758.0,0.22251028]
[1736314922315,2.809e-05,96759.0,96758.0,0.22351028]
[1736314922516,2.809e-05,96759.0,96758.0,0.22251028]
[1736314922737,2.809e-05,96759.0,96758.0,0.22451028]
[1736314922935,2.809e-05,96759.0,96758.0,0.22551028]
[1736314923151,2.809e-05,96759.0,96758.0,0.22351028]
[1736314923352,2.809e-05,96759.0,96758.0,0.22251028]
[1736314923765,2.809e-05,96759.0,96758.0,0.22551028]
[1736314924818,2.809e-05,96759.0,96758.0,0.22451028]
[1736314925222,2.809e-05,96759.0,96758.0,0.22251028]
[1736314925584,2.809e-05,96759.0,96758.0,0.22451028]
[1736314925786,2.809e-05,96759.0,96758.0,0.22251028]
[1736314926181,2.809e-05,96759.0,96758.0,0.22651028]
[1736314926988,2.809e-05,96759.0,96758.0,0.22251028]
[1736314927188,2.809e-05,96759.0,96758.0,0.22351028]
[1736314928360,2.809e-05,96759.0,96758.0,0.22651028]
[1736314929582,2.809e-05,96759.0,96758.0,0.19709116]
[1736314935683,2.809e-05,96759.0,96758.0,0.29709116]
[1736314935904,2.809e-05,96759.0,96758.0,0.34609116]
[1736314936474,2.809e-05,96759.0,96758.0,0.43814509]
[1736314938389,2.809e-05,96759.0,96758.0,0.34609116]
[1736314938585,2.809e-05,96759.0,96758.0,0.44512557]
[1736314939290,2.809e-05,96759.0,96758.0,0.34609116]
[1736314940040,2.809e-05,96759.0,96758.0,0.43843729]
[1736314940707,2.809e-05,96759.0,96758.0,0.34609116]
[1736314944589,2.809e-05,96759.0,96758.0,0.48458266]
[1736314945394,2.809e-05,96759.0,96758.0,0.34609116]
[1736314945605,2.809e-05,96759.0,96758.0,0.4404596]
[1736314947635,2.809e-05,96759.0,96758.0,0.57892492]
[1736314948271,2.809e-05,96759.0,96758.0,0.4404596]
[1736314948672,2.809e-05,96759.0,96758.0,0.34609116]
[1736314949582,2.809e-05,96759.0,96758.0,0.48455076]
[1736314950907,2.809e-05,96759.0,96758.0,0.34609116]
[1736314951107,2.809e-05,96759.0,96758.0,0.44512557]
[1736314954843,2.809e-05,96759.0,96758.0,0.67576635]
[1736314955044,2.809e-05,96759.0,96758.0,0.77480076]
[1736314955243,2.809e-05,96759.0,96758.0,0.54415998]
[1736314959383,2.809e-05,96759.0,96758.0,0.79415998]
[1736314961158,2.809e-05,96759.0,96758.0,0.79115998]
[1736314961362,2.809e-05,96759.0,96758.0,0.79015998]
[1736314961570,2.809e-05,96759.0,96758.0,0.79515998]
[1736314961748,2.809e-05,96759.0,96758.0,0.79715998]
[1736314964251,2.809e-05,96759.0,96758.0,0.79215998]
[1736314964450,0.00102809,96759.0,96758.0,0.79915998]
[1736314965266,0.00102809,96759.0,96758.0,0.80215998]
[1736314966400,0.00084809,96759.0,96758.0,0.90215998]
[1736314971599,0.00084809,96759.0,96758.0,0.70215998]
[1736314973830,0.00084809,96759.0,96758.0,0.88609575]
[1736314974576,0.00084809,96759.0,96758.0,0.43012557]
[1736314974769,0.00084809,96759.0,96758.0,0.34610936]
[1736314974971,0.00084809,96759.0,96758.0,0.11780936]
[1736314975382,0.00084809,96759.0,96758.0,0.24080936]
[1736314975596,0.00084809,96759.0,96758.0,0.32482557]
[1736314975793,8.53e-05,96761.0,96760.0,0.18401621]
[1736314976011,8.53e-05,96761.0,96760.0,0.30605062]
[1736314976213,8.53e-05,96761.0,96760.0,0.31278544]
[1736314976824,8.53e-05,96761.0,96760.0,0.22876923]
[1736314977036,8.53e-05,96761.0,96760.0,0.31278544]
[1736314977242,8.53e-05,96761.0,96760.0,0.22876923]
[1736314978423,8.53e-05,96761.0,96760.0,0.13773482]
[1736314979708,8.53e-05,96761.0,96760.0,0.13173482]
[1736314980007,8.53e-05,96761.0,96760.0,0.21775103]
[1736314980213,8.53e-05,96761.0,96760.0,0.21475103]
[1736314980354,8.53e-05,96761.0,96760.0,0.13073482]
[1736314980563,8.53e-05,96761.0,96760.0,0.12973482]
[1736314980781,8.53e-05,96761.0,96760.0,0.13073482]
[1736314981498,8.53e-05,96761.0,96760.0,0.12973482]
[1736314981703,8.53e-05,96761.0,96760.0,0.13273482]
[1736314981878,8.53e-05,96761.0,96760.0,0.13073482]
[1736314982403,8.53e-05,96761.0,96760.0,0.13273482]
[1736314982843,8.53e-05,96761.0,96760.0,0.1873497]
[1736314983050,8.53e-05,96761.0,96760.0,0.27036591]
[1736314983284,8.53e-05,96761.0,96760.0,0.27136591]
[1736314989126,8.53e-05,96761.0,96760.0,0.13273482]
[1736314989599,8.53e-05,96761.0,96760.0,0.21675103]
[1736314989846,8.53e-05,96761.0,96760.0,0.44288544]
[1736314990570,8.53e-05,96761.0,96760.0,0.58087023]
[1736314991055,8.53e-05,96761.0,96760.0,0.57987023]
[1736314991331,8.53e-05,96761.0,96760.0,0.54091985]
[1736314991580,8.53e-05,96761.0,96760.0,0.54191985]
[1736314992062,8.53e-05,96761.0,96760.0,0.53991985]
[1736314992296,8.53e-05,96761.0,96760.0,0.54191985]
[1736314992772,8.53e-05,96761.0,96760.0,0.55242307]
[1736314993213,8.53e-05,96761.0,96760.0,0.73684634]
[1736314993598,8.53e-05,96761.0,96760.0,0.55242307]
[1736314996230,8.53e-05,96761.0,96760.0,0.73681531]
[1736314996743,8.53e-05,96761.0,96760.0,0.55242307]
[1736315000682,8.53e-05,96761.0,96760.0,0.78290113]
[1736315001347,8.53e-05,96761.0,96760.0,0.55242307]
[1736315005097,8.53e-05,96761.0,96760.0,0.56096117]
[1736315005295,2.0149163,96761.0,96760.0,0.24030733]
[1736315005523,1.7117173,96761.0,96760.0,0.24030733]
[1736315005722,1.72249928,96761.0,96760.0,0.24030733]
[1736315005932,1.72249928,96761.0,96760.0,0.003]
[1736315006126,0.20672,96749.0,96745.0,0.1]
[1736315006307,2.869481,96748.0,96745.0,0.10015249]
[1736315006511,2.790311,96748.0,96747.0,0.023]
[1736315006714,0.206716,96752.0,96747.0,0.023]
[1736315006914,2.844468,96751.0,96746.0,0.023]
[1736315007112,2.688709,96751.0,96750.0,0.08401621]
[1736315007330,2.518709,96751.0,96749.0,0.08401621]
[1736315007536,2.222003,96750.0,96749.0,0.023]
[1736315007792,2.229099,96751.0,96749.0,0.023]
[1736315008185,2.229099,96751.0,96750.0,0.08401621]
[1736315008522,2.229099,96751.0,96749.0,0.023]
[1736315008730,2.229099,96751.0,96750.0,0.08401621]
[1736315008911,2.229099,96751.0,96749.0,0.023]
[1736315009307,2.233099,96751.0,96749.0,0.023]
[1736315009503,2.419252,96750.0,96749.0,0.023]
[1736315011011,0.20672,96749.0,96745.0,0.00015249]
[1736315011226,0.685029,96748.0,96733.0,0.09901249]
[1736315011514,2.066225,96750.0,96733.0,0.09901249]
[1736315011725,0.206735,96742.0,96737.0,0.023]
[1736315011929,0.206735,96742.0,96741.0,0.08401621]
[1736315012555,0.206735,96742.0,96741.0,0.00622453]
[1736315012826,0.206735,96742.0,96741.0,0.09024074]
[1736315013004,0.001,96742.0,96741.0,0.09024074]
[1736315013228,0.206724,96747.0,96746.0,0.08401621]
[1736315013390,1.141009,96747.0,96746.0,0.08401621]
[1736315014070,0.01016683,96751.0,96746.0,0.08401621]
[1736315014285,0.206693,96762.0,96747.0,0.023]
[1736315014503,0.20685541,96757.0,96747.0,0.02924637]
[1736315015923,0.20785541,96757.0,96747.0,0.02924637]
[1736315016353,0.21085541,96757.0,96747.0,0.02924637]
[1736315016560,0.206705,96756.0,96747.0,0.02924637]
[1736315016753,0.206705,96756.0,96747.0,0.023]
[1736315018006,0.41341,96756.0,96747.0,0.023]
[1736315018715,0.41741,96756.0,96747.0,0.023]
[1736315019080,0.41841,96756.0,96747.0,0.023]
[1736315019286,0.42241,96756.0,96747.0,0.023]
[1736315019655,0.41341,96756.0,96747.0,0.023]
[1736315019860,0.41841,96756.0,96747.0,0.023]
[1736315020095,0.206717,96751.0,96747.0,0.023]
[1736315021934,0.001,96756.0,96749.0,0.023]
[1736315022348,0.206718,96750.0,96747.0,0.023]
[1736315023246,0.413436,96750.0,96747.0,0.023]
[1736315023592,0.206718,96750.0,96747.0,0.023]
[1736315024009,0.206718,96750.0,96746.0,0.08401621]
[1736315024236,0.206718,96750.0,96747.0,0.023]
[1736315024458,0.207718,96750.0,96749.0,0.023]
[1736315024957,0.210718,96750.0,96747.0,0.023]
[1736315025158,0.206718,96750.0,96747.0,0.023]
[1736315025544,0.207718,96750.0,96747.0,0.023]
[1736315025758,0.211718,96750.0,96747.0,0.023]
[1736315025946,0.206718,96750.0,96747.0,0.023]
[1736315026149,0.207718,96750.0,96747.0,0.023]
[1736315026574,0.211718,96750.0,96747.0,0.023]
[1736315027323,0.210718,96750.0,96747.0,0.023]
[1736315027560,0.211718,96750.0,96747.0,0.023]
[1736315027773,0.211718,96750.0,96745.0,0.023]
[1736315027974,0.211718,96750.0,96749.0,0.023]
[1736315028399,0.207718,96750.0,96749.0,0.02926909]
[1736315028600,0.2169985,96750.0,96749.0,0.02926909]
[1736315028809,0.2209985,96750.0,96749.0,0.02926909]
[1736315029019,0.2179985,96750.0,96749.0,0.02926909]
[1736315029436,0.2219985,96750.0,96749.0,0.02926909]
[1736315030124,0.0152805,96750.0,96749.0,0.02926909]
[1736315030350,0.0142805,96750.0,96749.0,0.02926909]
[1736315030587,0.0152805,96750.0,96749.0,0.02926909]
[1736315031211,0.0102805,96750.0,96749.0,0.02926909]
[1736315031416,0.0112805,96750.0,96749.0,0.02926909]
[1736315031632,0.005,96750.0,96749.0,0.02926909]
[1736315032072,0.005,96750.0,96749.0,0.00626909]
[1736315032508,0.005,96750.0,96740.0,0.023]
[1736315032727,0.20672,96749.0,96740.0,0.023]
[1736315032925,0.20672,96749.0,96742.0,0.023]
[1736315033571,0.206729,96745.0,96742.0,0.10701621]
[1736315033771,0.206729,96745.0,96742.0,0.023]
[1736315033887,0.206729,96745.0,96743.0,0.00627163]